fUST/lending_fUST_20241213
["ID","MTS","AMOUNT","RATE_DAILY","PERIOD"]
[345208954,1734087050384,-455.62684611,0.00027571,2]
[345208956,1734087050393,-3030.08568546,0.000276,2]
[345208958,1734087050403,-3446.89430615,0.00027613,2]
[345208960,1734087050413,-219129.0933658,0.0002767,5]
[345208962,1734087050422,-500.0,0.00027671,7]
[345208964,1734087050432,-500.0,0.00027671,7]
[345208966,1734087050441,-507.20948304,0.00027671,7]
[345208968,1734087050450,-504.84920139,0.00027671,7]
[345208969,1734087050460,-505.82713284,0.00027671,7]
[345208971,1734087050469,-502.93845425,0.00027671,7]
[345208973,1734087050479,-416.77704594,0.00027671,7]
[345208975,1734087050492,-500.0,0.00027671,7]
[345208977,1734087050502,-572.68671684,0.00027671,7]
[345208979,1734087050511,-500.0,0.00027671,7]
[345208981,1734087050521,-500.0,0.00027671,7]
[345208983,1734087050531,-500.0,0.00027671,7]
[345208985,1734087050540,-674.07,0.00027671,7]
[345208987,1734087050550,-500.0,0.00027671,7]
[345208989,1734087050564,-500.0,0.00027671,7]
[345208991,1734087050574,-587.09396301,0.00027671,7]
[345208993,1734087050583,-526.0,0.00027671,7]
[345208995,1734087050593,-500.0,0.00027671,7]
[345208997,1734087050602,-500.0,0.00027671,7]
[345208999,1734087050612,-500.0,0.00027671,7]
[345209001,1734087050621,-500.0,0.00027671,7]
[345209003,1734087050630,-582.33,0.00027671,7]
[345209005,1734087050640,-500.0,0.00027671,7]
[345209007,1734087050649,-500.0,0.00027671,7]
[345209009,1734087050659,-500.0,0.00027671,7]
[345209010,1734087050669,-500.0,0.00027671,7]
[345209012,1734087050679,-181.17138029,0.00027671,7]
[345209014,1734087050688,-500.0,0.00027671,7]
[345209016,1734087050698,-500.0,0.00027671,7]
[345209018,1734087050708,-500.0,0.00027671,7]
[345209020,1734087050719,-500.0,0.00027671,7]
[345209022,1734087050728,-500.0,0.00027671,7]
[345209024,1734087050738,-500.0,0.00027671,7]
[345209026,1734087050747,-995.52,0.00027671,7]
[345209028,1734087050757,-500.0,0.00027671,7]
[345209030,1734087050767,-500.0,0.00027671,7]
[345209032,1734087050777,-1090.66,0.00027671,7]
[345209034,1734087050786,-505.37,0.00027671,7]
[345209036,1734087050796,-500.0,0.00027671,7]
[345209038,1734087050807,-500.0,0.00027671,7]
[345209040,1734087050816,-500.0,0.00027671,7]
[345209042,1734087050825,-500.0,0.00027671,7]
[345209044,1734087050835,-280.40658322,0.00027671,7]
[345209045,1734087050844,-572.33586906,0.00027671,7]
[345209047,1734087050854,-501.28708051,0.00027671,7]
[345209049,1734087050863,-500.0,0.00027671,7]
[345209051,1734087050873,-500.0,0.00027671,7]
[345209053,1734087050882,-500.0,0.00027671,7]
[345209055,1734087050892,-1352.73,0.00027671,7]
[345209057,1734087050902,-500.0,0.00027671,7]
[345209059,1734087050912,-500.0,0.00027671,7]
[345209061,1734087050921,-500.0,0.00027671,7]
[345209063,1734087050930,-500.0,0.00027671,7]
[345209065,1734087050940,-683.52,0.00027671,7]
[345209067,1734087050949,-500.0,0.00027671,7]
[345209069,1734087050959,-597.19216742,0.00027671,7]
[345209070,1734087050968,-500.0,0.00027671,7]
[345209072,1734087050978,-500.0,0.00027671,7]
[345209074,1734087050987,-500.0,0.00027671,7]
[345209076,1734087050997,-500.0,0.00027671,7]
[345209078,1734087051006,-500.0,0.00027671,7]
[345209080,1734087051016,-500.0,0.00027671,7]
[345209082,1734087051025,-693.11,0.00027671,7]
[345209084,1734087051034,-625.0,0.00027671,7]
[345209086,1734087051044,-178.05,0.00027671,7]
[345209088,1734087051056,-500.0,0.00027671,7]
[345209090,1734087051066,-500.0,0.00027671,7]
[345209092,1734087051075,-500.0,0.00027671,7]
[345209094,1734087051086,-500.0,0.00027671,7]
[345209096,1734087051095,-500.0,0.00027671,2]
[345209097,1734087051104,-500.0,0.00027671,7]
[345209099,1734087051114,-500.0,0.00027671,7]
[345209101,1734087051123,-500.0,0.00027671,7]
[345209103,1734087051133,-339.31497031,0.00027671,7]
[345209105,1734087051142,-631.92,0.00027671,7]
[345209107,1734087051152,-500.0,0.00027671,7]
[345209109,1734087051162,-500.0,0.00027671,7]
[345209111,1734087051172,-500.0,0.00027671,7]
[345209113,1734087051182,-1221.55,0.00027671,7]
[345209115,1734087051193,-500.0,0.00027671,7]
[345209117,1734087051203,-529.51,0.00027671,7]
[345209118,1734087051212,-500.0,0.00027671,7]
[345209119,1734087051222,-500.0,0.00027671,7]
[345209120,1734087051232,-744.04,0.00027671,7]
[345209121,1734087051241,-500.0,0.00027671,7]
[345209122,1734087051250,-500.0,0.00027671,7]
[345209123,1734087051259,-500.0,0.00027671,7]
[345209124,1734087051268,-838.68,0.00027671,7]
[345209125,1734087051278,-500.0,0.00027671,7]
[345209126,1734087051287,-500.0,0.00027671,7]
[345209127,1734087051296,-500.0,0.00027671,7]
[345209128,1734087051306,-500.0,0.00027671,7]
[345209129,1734087051315,-500.0,0.00027671,7]
[345209130,1734087051325,-909.79,0.00027671,7]
[345209131,1734087051335,-685.22,0.00027671,7]
[345209132,1734087051345,-500.0,0.00027671,7]
[345209133,1734087051354,-500.0,0.00027671,7]
[345209134,1734087051363,-764.72,0.00027671,7]
[345209135,1734087051373,-500.0,0.00027671,7]
[345209136,1734087051382,-500.0,0.00027671,7]
[345209137,1734087051392,-590.76093603,0.00027671,7]
[345209138,1734087051402,-426.71161329,0.00027671,7]
[345209140,1734087051411,-522.84,0.00027671,7]
[345209141,1734087051421,-500.0,0.00027671,7]
[345209143,1734087051431,-500.0,0.00027671,7]
[345209144,1734087051440,-500.0,0.00027671,7]
[345209145,1734087051450,-500.0,0.00027671,7]
[345209146,1734087051460,-500.45,0.00027671,7]
[345209147,1734087051470,-500.0,0.00027671,7]
[345209148,1734087051480,-500.0,0.00027671,7]
[345209149,1734087051492,-500.0,0.00027671,7]
[345209150,1734087051501,-500.0,0.00027671,7]
[345209151,1734087051511,-2084.21,0.00027671,7]
[345209152,1734087051522,-500.0,0.00027671,7]
[345209153,1734087051533,-605.54,0.00027671,7]
[345209154,1734087051542,-500.0,0.00027671,7]
[345209155,1734087051552,-500.0,0.00027671,7]
[345209156,1734087051564,-612.37,0.00027671,7]
[345209157,1734087051574,-656.79,0.00027671,7]
[345209158,1734087051583,-500.0,0.00027671,7]
[345209159,1734087051593,-500.0,0.00027671,7]
[345209160,1734087051602,-4108.9,0.00027671,7]
[345209161,1734087051613,-500.0,0.00027671,7]
[345209162,1734087051625,-627.6,0.00027671,7]
[345209163,1734087051636,-573.75,0.00027671,7]
[345209165,1734087051645,-447.76573857,0.00027671,7]
[345209166,1734087051654,-616.01,0.00027671,7]
[345209167,1734087051664,-500.0,0.00027671,7]
[345209168,1734087051674,-584.13661463,0.00027671,7]
[345209169,1734087051684,-500.0,0.00027671,7]
[345209170,1734087051695,-500.0,0.00027671,7]
[345209172,1734087051707,-500.0,0.00027671,7]
[345209174,1734087051717,-500.0,0.00027671,7]
[345209175,1734087051727,-500.0,0.00027671,7]
[345209177,1734087051736,-500.0,0.00027671,7]
[345209179,1734087051747,-500.0,0.00027671,7]
[345209180,1734087051757,-500.0,0.00027671,7]
[345209181,1734087051766,-555.44162418,0.00027671,7]
[345209182,1734087051776,-625.47,0.00027671,7]
[345209183,1734087051786,-500.0,0.00027671,7]
[345209184,1734087051796,-500.0,0.00027671,7]
[345209185,1734087051805,-500.0,0.00027671,7]
[345209186,1734087051815,-1914.87,0.00027671,7]
[345209187,1734087051824,-500.0,0.00027671,7]
[345209188,1734087051833,-500.0,0.00027671,7]
[345209189,1734087051844,-500.0,0.00027671,7]
[345209190,1734087051853,-500.0,0.00027671,7]
[345209191,1734087051863,-1030.44,0.00027671,7]
[345209192,1734087051874,-679.69,0.00027671,7]
[345209193,1734087051884,-500.0,0.00027671,7]
[345209194,1734087051895,-237.81526799,0.00027671,7]
[345209195,1734087051904,-579.29,0.00027671,7]
[345209196,1734087051914,-500.0,0.00027671,7]
[345209197,1734087051924,-423.17811844,0.00027671,7]
[345209198,1734087051934,-866.66,0.00027671,7]
[345209199,1734087051944,-500.0,0.00027671,7]
[345209200,1734087051954,-500.0,0.00027671,7]
[345209201,1734087051963,-500.0,0.00027671,7]
[345209202,1734087051972,-500.0,0.00027671,7]
[345209203,1734087051982,-500.0,0.00027671,7]
[345209204,1734087051991,-150.02,0.00027671,7]
[345209205,1734087052001,-150.02,0.00027671,7]
[345209206,1734087052010,-150.02,0.00027671,2]
[345209207,1734087052020,-150.03,0.00027671,7]
[345209208,1734087052029,-500.0,0.00027671,7]
[345209209,1734087052039,-150.03,0.00027671,7]
[345209210,1734087052049,-500.0,0.00027671,7]
[345209211,1734087052059,-631.23,0.00027671,7]
[345209212,1734087052068,-500.0,0.00027671,7]
[345209213,1734087052078,-500.0,0.00027671,7]
[345209214,1734087052087,-622.22,0.00027671,7]
[345209215,1734087052097,-209.48206504,0.00027671,7]
[345209216,1734087052107,-534.14,0.00027671,7]
[345209217,1734087052116,-500.0,0.00027671,7]
[345209218,1734087052126,-1041.82,0.00027671,7]
[345209219,1734087052136,-801.7,0.00027671,7]
[345209220,1734087052145,-500.0,0.00027671,7]
[345209221,1734087052156,-500.0,0.00027671,7]
[345209222,1734087052166,-150.02,0.00027671,7]
[345209223,1734087052176,-628.58,0.00027671,7]
[345209224,1734087052186,-150.6539178,0.00027671,7]
[345209225,1734087052196,-1064.8,0.00027671,7]
[345209226,1734087052205,-500.0,0.00027671,7]
[345209227,1734087052215,-4235.68,0.00027671,7]
[345209228,1734087052225,-500.0,0.00027671,7]
[345209229,1734087052235,-5744.07,0.00027671,7]
[345209230,1734087052244,-500.0,0.00027671,7]
[345209231,1734087052254,-959.09,0.00027671,7]
[345209232,1734087052264,-500.0,0.00027671,7]
[345209233,1734087052273,-500.0,0.00027671,7]
[345209234,1734087052283,-500.0,0.00027671,7]
[345209235,1734087052341,-1778.34,0.00027671,7]
[345209236,1734087052351,-543.5,0.00027671,7]
[345209237,1734087052361,-4442.91,0.00027671,7]
[345209238,1734087052372,-544.79,0.00027671,7]
[345209239,1734087052381,-500.0,0.00027671,7]
[345209240,1734087052391,-551.32006084,0.00027671,7]
[345209241,1734087052400,-1233.69,0.00027671,7]
[345209242,1734087052409,-500.0,0.00027671,7]
[345209243,1734087052419,-500.0,0.00027671,7]
[345209244,1734087052429,-631.09,0.00027671,7]
[345209245,1734087052439,-500.0,0.00027671,7]
[345209246,1734087052449,-545.32,0.00027671,7]
[345209247,1734087052459,-1434.82,0.00027671,7]
[345209248,1734087052468,-500.0,0.00027671,7]
[345209249,1734087052478,-500.0,0.00027671,7]
[345209250,1734087052490,-500.0,0.00027671,7]
[345209251,1734087052500,-500.0,0.00027671,7]
[345209252,1734087052509,-500.0,0.00027671,7]
[345209253,1734087052518,-500.0,0.00027671,7]
[345209254,1734087052529,-789.27,0.00027671,7]
[345209255,1734087052538,-500.0,0.00027671,7]
[345209256,1734087052548,-833.59,0.00027671,7]
[345209257,1734087052561,-349.02026285,0.00027671,7]
[345209258,1734087052571,-566.58222228,0.00027671,7]
[345209259,1734087052581,-500.0,0.00027671,7]
[345209260,1734087052590,-500.0,0.00027671,7]
[345209261,1734087052600,-500.0,0.00027671,7]
[345209262,1734087052609,-570.55,0.00027671,7]
[345209263,1734087052619,-500.0,0.00027671,7]
[345209264,1734087052629,-500.0,0.00027671,7]
[345209265,1734087052638,-500.0,0.00027671,7]
[345209266,1734087052649,-500.0,0.00027671,7]
[345209267,1734087052658,-500.0,0.00027671,7]
[345209268,1734087052668,-500.0,0.00027671,7]
[345209269,1734087052678,-500.0,0.00027671,7]
[345209270,1734087052688,-500.0,0.00027671,7]
[345209271,1734087052698,-744.67,0.00027671,7]
[345209272,1734087052707,-514.84,0.00027671,7]
[345209273,1734087052717,-580.86,0.00027671,7]
[345209274,1734087052727,-1144.78,0.00027671,7]
[345209275,1734087052738,-500.0,0.00027671,7]
[345209276,1734087052748,-500.0,0.00027671,7]
[345209277,1734087052757,-500.0,0.00027671,7]
[345209278,1734087052767,-500.0,0.00027671,7]
[345209279,1734087052776,-500.0,0.00027671,7]
[345209280,1734087052787,-504.52432576,0.00027671,7]
[345209281,1734087052797,-500.0,0.00027671,7]
[345209282,1734087052807,-500.0,0.00027671,7]
[345209283,1734087052817,-4742.0,0.00027671,7]
[345209284,1734087052827,-1430.09,0.00027671,7]
[345209285,1734087052836,-500.0,0.00027671,7]
[345209286,1734087052846,-2786.27,0.00027671,7]
[345209287,1734087052855,-500.0,0.00027671,7]
[345209288,1734087052864,-7615.94,0.00027671,7]
[345209289,1734087052874,-500.0,0.00027671,7]
[345209290,1734087052884,-500.0,0.00027671,7]
[345209291,1734087052894,-505.41729507,0.00027671,7]
[345209292,1734087052904,-500.0,0.00027671,7]
[345209293,1734087052913,-690.16,0.00027671,7]
[345209294,1734087052923,-502.76001874,0.00027671,7]
[345209295,1734087052932,-504.32126095,0.00027671,7]
[345209296,1734087052942,-891.03,0.00027671,7]
[345209297,1734087052951,-500.0,0.00027671,7]
[345209298,1734087052961,-289.58550388,0.00027671,7]
[345209299,1734087052970,-1377.89,0.00027671,7]
[345209300,1734087052979,-1217.47,0.00027671,7]
[345209301,1734087052989,-642.59,0.00027671,7]
[345209302,1734087052999,-500.0,0.00027671,7]
[345209303,1734087053008,-500.0,0.00027671,7]
[345209304,1734087053018,-929.55,0.00027671,7]
[345209305,1734087053028,-500.0,0.00027671,7]
[345209306,1734087053037,-880.83,0.00027671,7]
[345209307,1734087053048,-500.0,0.00027671,7]
[345209308,1734087053059,-745.11,0.00027671,7]
[345209309,1734087053069,-500.0,0.00027671,7]
[345209310,1734087053079,-500.0,0.00027671,7]
[345209311,1734087053088,-500.0,0.00027671,7]
[345209312,1734087053098,-500.0,0.00027671,7]
[345209313,1734087053108,-504.59704325,0.00027671,7]
[345209314,1734087053117,-500.0,0.00027671,7]
[345209315,1734087053126,-509.11,0.00027671,7]
[345209316,1734087053136,-821.86,0.00027671,7]
[345209317,1734087053146,-500.0,0.00027671,7]
[345209318,1734087053156,-500.0,0.00027671,7]
[345209319,1734087053166,-636.09,0.00027671,7]
[345209320,1734087053176,-500.0,0.00027671,7]
[345209321,1734087053185,-150.02,0.00027671,7]
[345209322,1734087053196,-578.93389428,0.00027671,7]
[345209323,1734087053206,-150.02,0.00027671,7]
[345209324,1734087053220,-500.0,0.00027671,7]
[345209325,1734087053229,-150.03,0.00027671,7]
[345209326,1734087053238,-500.0,0.00027671,7]
[345209327,1734087053249,-500.0,0.00027671,7]
[345209328,1734087053259,-150.03,0.00027671,7]
[345209329,1734087053268,-500.0,0.00027671,7]
[345209330,1734087053277,-500.0,0.00027671,7]
[345209331,1734087053287,-500.0,0.00027671,7]
[345209332,1734087053296,-150.02,0.00027671,7]
[345209333,1734087053307,-500.0,0.00027671,7]
[345209334,1734087053316,-509.6,0.00027671,2]
[345209335,1734087053325,-587.0,0.00027784,2]
[345209336,1734087053335,-151.0,0.00027862,2]
[345209337,1734087053345,-455.62684606,0.0002787,2]
[345209338,1734087053354,-571.40167407,0.00027878,2]
[345209339,1734087053363,-1209.4,0.000279,2]
[345209340,1734087053372,-151.0,0.000279,13]
[345209341,1734087053382,-1000.0,0.00027921,5]
[345209342,1734087053392,-801.6954452,0.00027921,5]
[345209343,1734087053401,-150.50327989,0.00027921,5]
[345209344,1734087053410,-1000.0,0.00027921,5]
[345209345,1734087053419,-150.02,0.00027945,7]
[345209346,1734087053429,-150.28,0.00027945,7]
[345209347,1734087053440,-150.02,0.00027945,7]
[345209348,1734087053449,-150.13,0.00027945,7]
[345209349,1734087053458,-150.02,0.00027945,7]
[345209350,1734087053468,-150.02,0.00027945,7]
[345209351,1734087053479,-500.0,0.00027945,7]
[345209352,1734087053494,-500.0,0.00027945,7]
[345209353,1734087053503,-500.68875522,0.00027945,7]
[345209354,1734087053513,-500.0,0.00027945,7]
[345209355,1734087053523,-500.0,0.00027945,7]
[345209356,1734087053532,-500.0,0.00027945,7]
[345209357,1734087053542,-674.07,0.00027945,7]
[345209358,1734087053552,-500.0,0.00027945,7]
[345209359,1734087053563,-500.0,0.00027945,7]
[345209360,1734087053572,-526.0,0.00027945,7]
[345209361,1734087053583,-500.0,0.00027945,7]
[345209362,1734087053592,-500.0,0.00027945,7]
[345209363,1734087053602,-500.0,0.00027945,7]
[345209364,1734087053611,-500.0,0.00027945,7]
[345209365,1734087053621,-582.33,0.00027945,7]
[345209366,1734087053630,-500.0,0.00027945,7]
[345209367,1734087053639,-500.0,0.00027945,7]
[345209368,1734087053648,-500.0,0.00027945,7]
[345209369,1734087053657,-500.0,0.00027945,7]
[345209370,1734087053666,-211.0395707,0.00027945,7]
[345209371,1734087053676,-500.0,0.00027945,7]
[345209372,1734087053685,-500.0,0.00027945,7]
[345209373,1734087053695,-500.0,0.00027945,7]
[345209374,1734087053704,-500.0,0.00027945,7]
[345209375,1734087053713,-500.0,0.00027945,7]
[345209376,1734087053723,-995.52,0.00027945,7]
[345209377,1734087053732,-500.0,0.00027945,7]
[345209378,1734087053742,-500.0,0.00027945,7]
[345209379,1734087053751,-1090.66,0.00027945,7]
[345209380,1734087053761,-505.37,0.00027945,7]
[345209381,1734087053771,-500.0,0.00027945,7]
[345209382,1734087053782,-500.0,0.00027945,7]
[345209383,1734087053794,-500.0,0.00027945,7]
[345209384,1734087053804,-500.0,0.00027945,7]
[345209385,1734087053817,-500.0,0.00027945,7]
[345209386,1734087053827,-556.35039519,0.00027945,7]
[345209387,1734087053836,-500.0,0.00027945,7]
[345209388,1734087053846,-1352.73,0.00027945,7]
[345209389,1734087053855,-500.0,0.00027945,7]
[345209390,1734087053865,-500.0,0.00027945,7]
[345209391,1734087053875,-500.0,0.00027945,7]
[345209392,1734087053885,-500.0,0.00027945,7]
[345209393,1734087053894,-683.52,0.00027945,7]
[345209394,1734087053903,-500.0,0.00027945,7]
[345209395,1734087053912,-500.0,0.00027945,7]
[345209396,1734087053922,-500.0,0.00027945,7]
[345209397,1734087053931,-500.0,0.00027945,7]
[345209398,1734087053940,-500.0,0.00027945,7]
[345209399,1734087053949,-500.0,0.00027945,7]
[345209400,1734087053959,-500.0,0.00027945,7]
[345209401,1734087053969,-693.11,0.00027945,7]
[345209402,1734087053979,-625.0,0.00027945,7]
[345209403,1734087053988,-178.05,0.00027945,7]
[345209404,1734087053998,-500.0,0.00027945,7]
[345209405,1734087054007,-500.0,0.00027945,7]
[345209406,1734087054017,-500.0,0.00027945,7]
[345209407,1734087054026,-500.0,0.00027945,7]
[345209408,1734087054036,-500.0,0.00027945,2]
[345209409,1734087054045,-500.0,0.00027945,7]
[345209410,1734087054054,-500.0,0.00027945,7]
[345209411,1734087054065,-500.0,0.00027945,7]
[345209412,1734087054075,-631.92,0.00027945,7]
[345209413,1734087054085,-500.0,0.00027945,7]
[345209414,1734087054094,-500.0,0.00027945,7]
[345209415,1734087054103,-500.0,0.00027945,7]
[345209416,1734087054113,-1221.55,0.00027945,7]
[345209417,1734087054122,-500.0,0.00027945,7]
[345209418,1734087054132,-529.51,0.00027945,7]
[345209419,1734087054141,-414.48359644,0.00027945,7]
[345209420,1734087054150,-500.0,0.00027945,7]
[345209421,1734087054160,-744.04,0.00027945,7]
[345209422,1734087054169,-500.0,0.00027945,7]
[345209423,1734087054178,-500.0,0.00027945,7]
[345209424,1734087054187,-500.0,0.00027945,7]
[345209425,1734087054197,-838.68,0.00027945,7]
[345209426,1734087054206,-500.0,0.00027945,7]
[345209427,1734087054216,-500.0,0.00027945,7]
[345209428,1734087054225,-500.0,0.00027945,7]
[345209429,1734087054235,-500.0,0.00027945,7]
[345209430,1734087054246,-504.80524936,0.00027945,7]
[345209431,1734087054256,-909.79,0.00027945,7]
[345209432,1734087054265,-685.22,0.00027945,7]
[345209433,1734087054274,-500.0,0.00027945,7]
[345209434,1734087054285,-500.0,0.00027945,7]
[345209435,1734087054294,-764.72,0.00027945,7]
[345209436,1734087054304,-500.0,0.00027945,7]
[345209437,1734087054315,-500.0,0.00027945,7]
[345209438,1734087054324,-522.84,0.00027945,7]
[345209439,1734087054333,-500.0,0.00027945,7]
[345209440,1734087054343,-478.83384328,0.00027945,7]
[345209441,1734087054353,-500.0,0.00027945,7]
[345209442,1734087054362,-500.0,0.00027945,7]
[345209443,1734087054372,-500.45,0.00027945,7]
[345209444,1734087054382,-500.0,0.00027945,7]
[345209445,1734087054393,-500.0,0.00027945,7]
[345209446,1734087054403,-500.0,0.00027945,7]
[345209447,1734087054412,-500.0,0.00027945,7]
[345209448,1734087054422,-2084.21,0.00027945,7]
[345209449,1734087054432,-500.0,0.00027945,7]
[345209450,1734087054441,-605.54,0.00027945,7]
[345209451,1734087054451,-500.0,0.00027945,7]
[345209452,1734087054460,-500.0,0.00027945,7]
[345209453,1734087054470,-612.37,0.00027945,7]
[345209454,1734087054482,-656.79,0.00027945,7]
[345209455,1734087054493,-512.13038335,0.00027945,7]
[345209456,1734087054503,-226.08284791,0.00027945,7]
[345209457,1734087054512,-4108.9,0.00027945,7]
[345209458,1734087054523,-500.0,0.00027945,7]
[345209459,1734087054533,-627.6,0.00027945,7]
[345209460,1734087054542,-573.75,0.00027945,7]
[345209461,1734087054553,-616.01,0.00027945,7]
[345209462,1734087054565,-500.0,0.00027945,7]
[345209463,1734087054575,-500.0,0.00027945,7]
[345209464,1734087054585,-500.0,0.00027945,7]
[345209465,1734087054595,-500.0,0.00027945,7]
[345209466,1734087054604,-500.0,0.00027945,7]
[345209467,1734087054614,-500.0,0.00027945,7]
[345209468,1734087054624,-500.0,0.00027945,7]
[345209469,1734087054634,-596.31720197,0.00027945,7]
[345209470,1734087054645,-500.0,0.00027945,7]
[345209471,1734087054655,-625.47,0.00027945,7]
[345209472,1734087054665,-500.0,0.00027945,7]
[345209473,1734087054677,-500.0,0.00027945,7]
[345209474,1734087054687,-500.0,0.00027945,7]
[345209475,1734087054697,-1914.87,0.00027945,7]
[345209476,1734087054707,-500.0,0.00027945,7]
[345209477,1734087054717,-500.0,0.00027945,7]
[345209478,1734087054727,-602.23088319,0.00027945,7]
[345209479,1734087054737,-500.0,0.00027945,7]
[345209480,1734087054747,-1030.44,0.00027945,7]
[345209481,1734087054759,-679.69,0.00027945,7]
[345209482,1734087054769,-500.0,0.00027945,7]
[345209483,1734087054779,-579.29,0.00027945,7]
[345209484,1734087054789,-500.0,0.00027945,7]
[345209485,1734087054798,-866.66,0.00027945,7]
[345209486,1734087054810,-500.0,0.00027945,7]
[345209487,1734087054820,-500.0,0.00027945,7]
[345209488,1734087054830,-500.0,0.00027945,7]
[345209489,1734087054840,-500.0,0.00027945,7]
[345209490,1734087054851,-500.0,0.00027945,7]
[345209491,1734087054861,-500.0,0.00027945,7]
[345209492,1734087054872,-500.0,0.00027945,7]
[345209493,1734087054881,-631.23,0.00027945,7]
[345209494,1734087054891,-500.0,0.00027945,7]
[345209495,1734087054901,-500.0,0.00027945,7]
[345209496,1734087054911,-622.22,0.00027945,7]
[345209497,1734087054920,-534.14,0.00027945,7]
[345209498,1734087054930,-500.0,0.00027945,7]
[345209499,1734087054940,-1041.82,0.00027945,7]
[345209500,1734087054950,-801.7,0.00027945,7]
[345209501,1734087054959,-500.0,0.00027945,7]
[345209502,1734087054969,-500.0,0.00027945,7]
[345209503,1734087054980,-628.58,0.00027945,7]
[345209504,1734087054989,-1064.8,0.00027945,7]
[345209505,1734087054999,-500.0,0.00027945,7]
[345209506,1734087055009,-500.0,0.00027945,7]
[345209507,1734087055021,-5744.07,0.00027945,7]
[345209508,1734087055031,-4235.68,0.00027945,7]
[345209509,1734087055041,-451.3641953,0.00027945,7]
[345209510,1734087055051,-959.09,0.00027945,7]
[345209511,1734087055062,-500.0,0.00027945,7]
[345209512,1734087055073,-500.0,0.00027945,7]
[345209513,1734087055084,-217.54740716,0.00027945,7]
[345209514,1734087055094,-1778.34,0.00027945,7]
[345209515,1734087055104,-543.5,0.00027945,7]
[345209516,1734087055114,-4442.91,0.00027945,7]
[345209517,1734087055124,-544.79,0.00027945,7]
[345209518,1734087055134,-500.0,0.00027945,7]
[345209519,1734087055144,-1233.69,0.00027945,7]
[345209520,1734087055154,-500.0,0.00027945,7]
[345209521,1734087055164,-500.0,0.00027945,7]
[345209522,1734087055173,-631.09,0.00027945,7]
[345209523,1734087055183,-500.0,0.00027945,7]
[345209524,1734087055193,-545.32,0.00027945,7]
[345209525,1734087055203,-1434.82,0.00027945,7]
[345209526,1734087055212,-500.0,0.00027945,7]
[345209527,1734087055222,-500.0,0.00027945,7]
[345209528,1734087055232,-500.0,0.00027945,7]
[345209529,1734087055242,-500.0,0.00027945,7]
[345209530,1734087055251,-501.75047886,0.00027945,7]
[345209531,1734087055261,-500.0,0.00027945,7]
[345209532,1734087055271,-789.27,0.00027945,7]
[345209533,1734087055281,-500.0,0.00027945,7]
[345209534,1734087055291,-833.59,0.00027945,7]
[345209535,1734087055301,-632.53527955,0.00027945,7]
[345209536,1734087055312,-500.0,0.00027945,7]
[345209537,1734087055322,-500.0,0.00027945,7]
[345209538,1734087055333,-570.55,0.00027945,7]
[345209539,1734087055343,-500.0,0.00027945,7]